[Event "Kupreichik Memorial Rapid 2019"]
[Site "Minsk"]
[Date "2019.08.16"]
[Round "6.5"]
[White "Mustaps, Matiss"]
[Black "Agapov, Sergey"]
[Result "1-0"]
[ECO "B01"]
[WhiteElo "2381"]
[BlackElo "2265"]
[Annotator "NA"]
[PlyCount "53"]
[EventDate "2019.08.15"]
[EventType "swiss"]
[EventCountry "BLR"]
[SourceTitle "playchess.com"]
[Source "ChessBase"]
[SourceQuality "1"]
[TimeControl "900+10"]

1. e4 {[%emt 0:00:00]} d5 {[%emt 0:00:00]} 2. exd5 {[%emt 0:00:00]} Qxd5 {[%emt 0:00:00]} 3. Nc3 {[%emt 0:00:00]} Qd6 {[%emt 0:00:00]} 4. d4 {[%emt 0:00:06]} Nf6 {[%emt 0:00:00]} 5. Nf3 {[%emt 0:00:02]} c6 {[%emt 0:00:00]} 6. Bc4 {[%emt 0:00:16]} Bf5 {[%emt 0:00:26]} 7. Ne5 {[%emt 0:00:10]} Bg6 {[%emt 0:00:07]} 8. h4 {[%emt 0:00:29]} Nbd7 {[%emt 0:00:08]} 9. Bf4 {[%emt 0:00:11]} Nxe5 {[%emt 0:00:16]} 10. Bxe5 {[%emt 0:01:18]} Qb4 {[%emt 0:00:22]} 11. Bb3 {[%emt 0:00:05]} e6 {[%emt 0:02:13]} 12. h5 {[%emt 0:00:22]} Bf5 {[%emt 0:01:13]} 13. h6 {[%emt 0:00:32]} Qe7 {[%emt 0:00:01]} 14. g4 {[%emt 0:02:09]} Bxg4 {[%emt 0:02:41]} 15. Bxf6 gxf6 {[%emt 0:00:01]} 16. Qxg4 {[%emt 0:00:18]} O-O-O {[%emt 0:00:02]} 17. O-O-O {[%emt 0:00:10]} Rg8 {[%emt 0:00:10]} 18. Qe4 {[%emt 0:01:44]} Rg6 {[%emt 0:00:50]} 19. Kb1 {[%emt 0:01:18]} Qc7 {[%emt 0:01:03]} 20. Rdg1 {[%emt 0:01:46]} f5 {[%emt 0:00:05]} 21. Qe1 {[%emt 0:00:24]} Rxh6 {[%emt 0:01:04]} 22. Rxh6 {[%emt 0:00:03]} Bxh6 {[%emt 0:00:01]} 23. Bxe6+ {[%emt 0:00:01]} Kb8 {[%emt 0:00:01]} 24. Bxf5 {[%emt 0:00:25]} f6 {[%emt 0:00:23]} 25. Bd3 {[%emt 0:00:40]} Bg5 {[%emt 0:00:15]} 26. Ne4 {[%emt 0:00:19]} Bh4 {[%emt 0:00:46]} 27. Rh1 {[%emt 0:00:38]} 1-0

[Event "Kupreichik Memorial Rapid 2019"]
[Site "Minsk"]
[Date "2019.08.16"]
[Round "6.6"]
[White "Meshkov, Yuri A."]
[Black "Pogosian, Manvel"]
[Result "1-0"]
[ECO "B13"]
[WhiteElo "2336"]
[BlackElo "2383"]
[Annotator "NA"]
[PlyCount "149"]
[EventDate "2019.08.15"]
[EventType "swiss"]
[EventCountry "BLR"]
[SourceTitle "playchess.com"]
[Source "ChessBase"]
[SourceQuality "1"]
[TimeControl "900+10"]

1. e4 {[%emt 0:00:00]} c6 {[%emt 0:00:00]} 2. d4 {[%emt 0:00:00]} d5 {[%emt 0:00:00]} 3. exd5 {[%emt 0:00:00]} cxd5 {[%emt 0:00:00]} 4. Bd3 {[%emt 0:00:00]} Nc6 {[%emt 0:00:02]} 5. c3 {[%emt 0:00:00]} Nf6 {[%emt 0:00:24]} 6. Bf4 {[%emt 0:00:00]} g6 {[%emt 0:00:05]} 7. Nf3 {[%emt 0:00:13]} Bf5 {[%emt 0:00:06]} 8. O-O {[%emt 0:00:27]} Bxd3 9. Qxd3 {[%emt 0:00:01]} Bg7 {[%emt 0:00:12]} 10. Nbd2 {[%emt 0:00:11]} O-O {[%emt 0:00:08]} 11. h3 {[%emt 0:00:01]} Rc8 {[%emt 0:00:49]} 12. Rfe1 {[%emt 0:00:13]} a6 {[%emt 0:00:33]} 13. a4 {[%emt 0:00:07]} Nd7 {[%emt 0:00:12]} 14. Re2 {[%emt 0:00:51]} Re8 {[%emt 0:01:11]} 15. Qb1 {[%emt 0:01:15]} Qb6 {[%emt 0:00:35]} 16. Qa2 {[%emt 0:00:08]} e6 {[%emt 0:01:19]} 17. g4 {[%emt 0:00:41]} Na5 {[%emt 0:01:04]} 18. Rae1 {[%emt 0:01:02]} Nc4 {[%emt 0:01:18]} 19. Nxc4 {[%emt 0:00:08]} Rxc4 {[%emt 0:00:01]} 20. Nd2 {[%emt 0:00:12]} Rcc8 {[%emt 0:00:13]} 21. Nb3 {[%emt 0:00:54]} Qd8 {[%emt 0:01:41]} 22. Nc1 {[%emt 0:00:13]} b5 {[%emt 0:01:00]} 23. Nd3 {[%emt 0:00:01]} Qb6 {[%emt 0:00:44]} 24. Nb4 {[%emt 0:00:25]} Rf8 {[%emt 0:01:29]} 25. axb5 {[%emt 0:01:52]} axb5 {[%emt 0:00:10]} 26. Ra1 {[%emt 0:00:03]} Rc4 {[%emt 0:01:16]} 27. Be3 {[%emt 0:00:48]} f5 {[%emt 0:00:33]} 28. Qa7 {[%emt 0:00:35]} Qxa7 {[%emt 0:01:32]} 29. Rxa7 {[%emt 0:00:01]} Rf7 {[%emt 0:00:20]} 30. Kg2 {[%emt 0:03:10]} Nf8 {[%emt 0:00:19]} 31. Rxf7 Kxf7 {[%emt 0:00:01]} 32. Nd3 {[%emt 0:00:14]} Nd7 {[%emt 0:00:08]} 33. Re1 {[%emt 0:00:23]} Bf8 {[%emt 0:00:22]} 34. Ra1 {[%emt 0:00:09]} Ra4 {[%emt 0:00:09]} 35. Rc1 {[%emt 0:00:16]} Bd6 {[%emt 0:00:13]} 36. Bf4 {[%emt 0:00:32]} Be7 {[%emt 0:00:26]} 37. gxf5 {[%emt 0:00:32]} gxf5 {[%emt 0:00:09]} 38. Kf3 {[%emt 0:00:01]} Ra2 {[%emt 0:00:11]} 39. Be5 {[%emt 0:00:29]} Nb6 {[%emt 0:00:23]} 40. Rg1 {[%emt 0:00:23]} Bf8 {[%emt 0:00:03]} 41. Re1 {[%emt 0:01:15]} Nc4 {[%emt 0:00:14]} 42. Re2 {[%emt 0:00:00]} Bh6 {[%emt 0:00:00]} 43. Bf4 {[%emt 0:00:17]} Bf8 {[%emt 0:00:13]} 44. b3 {[%emt 0:00:19]} Rxe2 {[%emt 0:00:06]} 45. Kxe2 {[%emt 0:00:01]} Na5 {[%emt 0:00:11]} 46. b4 {[%emt 0:00:26]} Nc6 {[%emt 0:00:17]} 47. Bc7 {[%emt 0:00:09]} Bh6 {[%emt 0:00:20]} 48. Bf4 {[%emt 0:00:12]} Bf8 {[%emt 0:00:07]} 49. Ne1 {[%emt 0:00:15]} Be7 {[%emt 0:00:26]} 50. Nc2 {[%emt 0:00:01]} Kg6 {[%emt 0:00:46]} 51. Na3 {[%emt 0:00:01]} Na7 {[%emt 0:00:01]} 52. Bb8 {[%emt 0:00:02]} Nc6 {[%emt 0:00:01]} 53. Bc7 {[%emt 0:00:01]} Na7 {[%emt 0:00:07]} 54. Bb6 {[%emt 0:00:00]} Nc8 {[%emt 0:00:13]} 55. Bc5 {[%emt 0:00:01]} Bxc5 {[%emt 0:00:10]} 56. bxc5 {[%emt 0:00:12]} Na7 {[%emt 0:00:02]} 57. Nc2 {[%emt 0:00:01]} f4 {[%emt 0:00:09]} 58. Nb4 {[%emt 0:00:04]} Kf5 {[%emt 0:00:02]} 59. Kf3 {[%emt 0:00:02]} e5 {[%emt 0:00:19]} 60. dxe5 {[%emt 0:00:10]} Kxe5 {[%emt 0:00:01]} 61. Nd3+ {[%emt 0:00:01]} Kf5 {[%emt 0:00:23]} 62. Nxf4 {[%emt 0:00:01]} Ke5 {[%emt 0:00:00]} 63. Nd3+ {[%emt 0:00:01]} Kf5 {[%emt 0:00:02]} 64. Nb4 {[%emt 0:00:02]} Ke5 {[%emt 0:00:07]} 65. Ke3 {[%emt 0:00:01]} h5 {[%emt 0:00:15]} 66. f4+ {[%emt 0:00:22]} Ke6 {[%emt 0:00:36]} 67. Nc2 {[%emt 0:00:04]} Kf6 {[%emt 0:00:28]} 68. Nd4 {[%emt 0:00:02]} Ke7 {[%emt 0:00:14]} 69. Kf3 {[%emt 0:00:07]} Kd7 {[%emt 0:00:10]} 70. f5 {[%emt 0:00:07]} Nc8 {[%emt 0:00:24]} 71. f6 {[%emt 0:00:04]} Ke8 {[%emt 0:00:13]} 72. Kf4 {[%emt 0:00:01]} Kf7 {[%emt 0:00:01]} 73. Kf5 {[%emt 0:00:10]} h4 {[%emt 0:00:05]} 74. Nxb5 {[%emt 0:00:09]} Kf8 {[%emt 0:00:21]} 75. Ke6 {[%emt 0:00:05]} 1-0

[Event "Kupreichik Memorial Rapid 2019"]
[Site "Minsk"]
[Date "2019.08.16"]
[Round "6.7"]
[White "Smirnov, Valerij"]
[Black "Sychev, Klementy"]
[Result "0-1"]
[ECO "E10"]
[WhiteElo "2261"]
[BlackElo "2579"]
[Annotator "ChessBase"]
[PlyCount "88"]
[EventDate "2019.08.15"]
[EventType "swiss"]
[EventCountry "BLR"]
[SourceTitle "playchess.com"]
[Source "ChessBase"]
[SourceQuality "1"]
[TimeControl "900+10"]

1. d4 {[%emt 0:00:00]} Nf6 {[%emt 0:00:01]} 2. c4 {[%emt 0:00:00]} e6 {[%emt 0:00:08]} 3. Nf3 {[%emt 0:00:03]} d5 {[%emt 0:00:08]} 4. e3 {[%emt 0:00:15]} Be7 {[%emt 0:00:19]} 5. Nc3 {[%emt 0:00:05]} O-O {[%emt 0:00:11]} 6. Be2 {[%emt 0:00:39]} dxc4 {[%emt 0:00:05]} 7. Bxc4 {[%emt 0:00:02]} a6 {[%emt 0:00:03]} 8. O-O {[%emt 0:00:11]} b5 {[%emt 0:00:02]} 9. Bb3 {[%emt 0:00:01]} Bb7 {[%emt 0:00:09]} 10. Qe2 {[%emt 0:00:26]} c5 {[%emt 0:00:27]} 11. Rd1 {[%emt 0:00:19]} Qc7 {[%emt 0:03:41]} 12. Bd2 {[%emt 0:04:03]} Nc6 {[%emt 0:03:44]} 13. Rac1 {[%emt 0:00:35]} c4 {[%emt 0:00:31]} 14. Bc2 {[%emt 0:00:05]} Rad8 {[%emt 0:00:08]} 15. Be1 {[%emt 0:01:26]} Nb4 {[%emt 0:00:32]} 16. Bb1 {[%emt 0:00:25]} Nbd5 {[%emt 0:00:22]} 17. Ne5 {[%emt 0:01:58]} Bd6 {[%emt 0:00:37]} 18. f4 {[%emt 0:00:10]} Nxc3 {[%emt 0:00:18]} 19. Bxc3 {[%emt 0:01:13]} Qc8 {[%emt 0:01:28]} 20. b3 {[%emt 0:01:01]} Ba3 {[%emt 0:03:05]} 21. Bb2 {[%emt 0:00:09]} Bxb2 {[%emt 0:00:02]} 22. Qxb2 {[%emt 0:00:02]} Nd5 {[%emt 0:00:03]} 23. Qf2 {[%emt 0:02:43]} c3 {[%emt 0:00:01]} 24. f5 {[%emt 0:01:12]} f6 {[%emt 0:00:18]} 25. Nd3 {[%emt 0:00:03]} exf5 {[%emt 0:00:16]} 26. Nc5 {[%emt 0:00:01]} g6 {[%emt 0:00:01]} 27. e4 {[%emt 0:00:32]} fxe4 {[%emt 0:00:01]} 28. Bxe4 {[%emt 0:00:01]} b4 {[%emt 0:00:02]} 29. Re1 {[%emt 0:00:32]} Ba8 {[%emt 0:01:02]} 30. Rc2 {[%emt 0:00:11]} Rde8 {[%emt 0:00:12]} 31. Rce2 {[%emt 0:00:04]} Kg7 {[%emt 0:00:16]} 32. Qg3 {[%emt 0:00:35]} Kh8 {[%emt 0:00:44]} 33. Qf3 {[%emt 0:00:26]} Nc7 {[%emt 0:00:17]} 34. Bc6 {[%emt 0:00:15]} Rxe2 {[%emt 0:00:13]} 35. Rxe2 {[%emt 0:00:01]} Nb5 {[%emt 0:00:08]} 36. Ne6 {[%emt 0:01:03]} Bxc6 {[%emt 0:00:06]} 37. d5 {[%emt 0:00:01]} Bb7 {[%emt 0:00:12]} 38. Nxf8 {[%emt 0:00:02]} Qxf8 {[%emt 0:00:02]} 39. Qe4 {[%emt 0:00:08]} Nc7 {[%emt 0:00:41]} 40. Qe7 {[%emt 0:00:12]} Qxe7 {[%emt 0:00:02]} 41. Rxe7 {[%emt 0:00:02]} Nxd5 {[%emt 0:00:01]} 42. Rxb7 {[%emt 0:00:01]} c2 {[%emt 0:00:01]} 43. Rb8+ {[%emt 0:00:00]} Kg7 {[%emt 0:00:01]} 44. Rc8 {[%emt 0:00:01]} Nc3 {[%emt 0:00:02]} 0-1

[Event "Kupreichik Memorial Rapid 2019"]
[Site "Minsk"]
[Date "2019.08.16"]
[Round "6.8"]
[White "Kuleshov, Konstantin"]
[Black "Vaganian, Rafael A"]
[Result "1/2-1/2"]
[ECO "D37"]
[WhiteElo "2076"]
[BlackElo "2514"]
[Annotator "RC"]
[PlyCount "61"]
[EventDate "2019.08.15"]
[EventType "swiss"]
[EventCountry "BLR"]
[SourceTitle "playchess.com"]
[Source "ChessBase"]
[SourceQuality "1"]
[TimeControl "900+10"]

1. d4 {[%emt 0:00:00]} d5 {[%emt 0:00:00]} 2. c4 {[%emt 0:00:00]} e6 {[%emt 0:00:00]} 3. Nc3 {[%emt 0:00:00]} Be7 {[%emt 0:00:00]} 4. Nf3 {[%emt 0:00:00]} Nf6 5. Bf4 {[%emt 0:00:18]} O-O {[%emt 0:00:00]} 6. e3 {[%emt 0:00:02]} Nbd7 {[%emt 0:00:00]} 7. Be2 {[%emt 0:00:06]} c5 {[%emt 0:00:18]} 8. O-O {[%emt 0:00:08]} cxd4 {[%emt 0:00:03]} 9. exd4 {[%emt 0:00:02]} dxc4 {[%emt 0:00:01]} 10. Bxc4 {[%emt 0:00:03]} Nb6 {[%emt 0:00:03]} 11. Bd3 {[%emt 0:00:07]} Nbd5 {[%emt 0:00:07]} 12. Be5 {[%emt 0:00:06]} b6 {[%emt 0:00:13]} 13. Qe2 {[%emt 0:00:19]} Bb7 {[%emt 0:00:02]} 14. Rad1 {[%emt 0:00:03]} Rc8 {[%emt 0:00:38]} 15. Nxd5 Nxd5 16. Qe4 {[%emt 0:00:08]} f5 {[%emt 0:00:09]} 17. Qe2 {[%emt 0:00:08]} Bf6 {[%emt 0:00:52]} 18. a3 {[%emt 0:00:10]} Re8 {[%emt 0:00:22]} 19. Bb5 {[%emt 0:00:14]} Bc6 {[%emt 0:00:02]} 20. Ba6 {[%emt 0:00:12]} Ra8 {[%emt 0:00:14]} 21. Rc1 {[%emt 0:00:02]} Qd7 22. Rc2 {[%emt 0:00:15]} Ba4 {[%emt 0:00:50]} 23. Rcc1 {[%emt 0:00:46]} Re7 24. h3 {[%emt 0:00:17]} Bxe5 {[%emt 0:01:04]} 25. Nxe5 {[%emt 0:00:16]} Qd6 {[%emt 0:00:01]} 26. Nc4 {[%emt 0:00:54]} Qd8 {[%emt 0:00:43]} 27. Qe5 {[%emt 0:00:07]} Bb3 {[%emt 0:03:23]} 28. Nd2 {[%emt 0:01:12]} Ba4 {[%emt 0:00:12]} 29. Nc4 {[%emt 0:00:07]} Bb3 {[%emt 0:00:11]} 30. Nd2 {[%emt 0:00:01]} Ba4 {[%emt 0:00:01]} 31. Nc4 {[%emt 0:00:02]} 1/2-1/2

[Event "Kupreichik Memorial Rapid 2019"]
[Site "Minsk"]
[Date "2019.08.16"]
[Round "6.9"]
[White "Mikhailovsky, Vladimir"]
[Black "Lazavik, Denis"]
[Result "1/2-1/2"]
[ECO "C49"]
[WhiteElo "2209"]
[BlackElo "2347"]
[Annotator "NA"]
[PlyCount "163"]
[EventDate "2019.08.15"]
[EventType "swiss"]
[EventCountry "BLR"]
[SourceTitle "playchess.com"]
[Source "ChessBase"]
[SourceQuality "1"]
[TimeControl "900+10"]

1. e4 {[%emt 0:00:00]} e5 {[%emt 0:00:00]} 2. Nf3 {[%emt 0:00:00]} Nc6 {[%emt 0:00:00]} 3. Nc3 {[%emt 0:00:16]} Nf6 {[%emt 0:00:00]} 4. Bb5 {[%emt 0:03:37]} Bb4 {[%emt 0:00:02]} 5. O-O {[%emt 0:00:03]} O-O {[%emt 0:00:03]} 6. d3 {[%emt 0:00:02]} d6 {[%emt 0:00:03]} 7. Bxc6 {[%emt 0:00:05]} bxc6 {[%emt 0:00:06]} 8. Ne2 {[%emt 0:00:02]} h6 {[%emt 0:00:37]} 9. Ng3 {[%emt 0:00:07]} Bc5 {[%emt 0:00:28]} 10. Qe2 {[%emt 0:00:12]} Bb6 {[%emt 0:01:26]} 11. h3 {[%emt 0:01:30]} Nh7 {[%emt 0:00:34]} 12. a4 {[%emt 0:00:42]} a5 {[%emt 0:00:21]} 13. Nf5 {[%emt 0:00:29]} Bxf5 {[%emt 0:00:20]} 14. exf5 {[%emt 0:00:04]} Qd7 {[%emt 0:00:02]} 15. g4 {[%emt 0:00:20]} Rae8 {[%emt 0:00:08]} 16. Kg2 {[%emt 0:00:33]} d5 {[%emt 0:00:20]} 17. Nd2 {[%emt 0:02:31]} Kh8 {[%emt 0:00:49]} 18. Nb3 {[%emt 0:00:17]} c5 {[%emt 0:00:48]} 19. Bd2 {[%emt 0:00:48]} e4 {[%emt 0:01:28]} 20. Nxa5 {[%emt 0:01:09]} Ra8 {[%emt 0:00:32]} 21. Nb3 {[%emt 0:01:51]} exd3 {[%emt 0:00:12]} 22. cxd3 {[%emt 0:00:05]} Rxa4 {[%emt 0:00:07]} 23. Qf3 {[%emt 0:00:29]} Rxa1 {[%emt 0:00:43]} 24. Rxa1 {[%emt 0:00:02]} c4 {[%emt 0:00:11]} 25. Nc1 {[%emt 0:00:38]} Bd4 {[%emt 0:00:04]} 26. Ra5 {[%emt 0:00:44]} Nf6 {[%emt 0:00:41]} 27. dxc4 {[%emt 0:00:18]} dxc4 {[%emt 0:00:15]} 28. Bc3 {[%emt 0:00:09]} Bxc3 {[%emt 0:00:11]} 29. bxc3 {[%emt 0:00:01]} Re8 {[%emt 0:00:21]} 30. Ne2 {[%emt 0:00:37]} Qd3 {[%emt 0:00:47]} 31. Nf4 {[%emt 0:01:29]} Qd6 {[%emt 0:01:43]} 32. Nd5 {[%emt 0:00:44]} Ne4 {[%emt 0:00:12]} 33. Ne3 {[%emt 0:00:16]} Qd3 {[%emt 0:00:50]} 34. Nd5 {[%emt 0:00:17]} c6 {[%emt 0:01:55]} 35. Nb4 {[%emt 0:00:04]} Qxf3+ {[%emt 0:00:05]} 36. Kxf3 {[%emt 0:00:01]} Nxc3 {[%emt 0:00:02]} 37. Rc5 {[%emt 0:00:10]} Ne4 {[%emt 0:00:14]} 38. Rxc6 {[%emt 0:00:01]} Nd2+ {[%emt 0:00:19]} 39. Kg3 {[%emt 0:00:24]} Rd8 {[%emt 0:01:49]} 40. Rc7 {[%emt 0:00:10]} Ne4+ {[%emt 0:00:38]} 41. Kf3 {[%emt 0:00:05]} Ng5+ {[%emt 0:00:13]} 42. Kg2 {[%emt 0:00:03]} Rd4 {[%emt 0:00:27]} 43. Nc6 {[%emt 0:00:19]} Rd2 {[%emt 0:00:29]} 44. Ne5 {[%emt 0:00:10]} c3 {[%emt 0:01:11]} 45. Rc8+ {[%emt 0:00:14]} Kh7 {[%emt 0:00:01]} 46. h4 {[%emt 0:00:09]} Ne4 {[%emt 0:00:19]} 47. Kf3 {[%emt 0:00:18]} Nd6 {[%emt 0:00:19]} 48. Rxc3 {[%emt 0:00:02]} Rd5 {[%emt 0:00:02]} 49. Nc6 {[%emt 0:00:17]} h5 {[%emt 0:00:01]} 50. Ne7 {[%emt 0:00:11]} hxg4+ {[%emt 0:00:09]} 51. Kxg4 {[%emt 0:00:02]} Re5 {[%emt 0:00:17]} 52. Re3 {[%emt 0:00:04]} Re4+ {[%emt 0:00:12]} 53. Rxe4 Nxe4 {[%emt 0:00:02]} 54. f3 {[%emt 0:00:32]} Nf6+ {[%emt 0:00:10]} 55. Kg5 {[%emt 0:00:01]} Nd7 {[%emt 0:00:11]} 56. Nc6 {[%emt 0:00:06]} f6+ {[%emt 0:00:16]} 57. Kh5 {[%emt 0:00:15]} Nc5 {[%emt 0:00:02]} 58. Nd4 {[%emt 0:00:09]} Nd3 {[%emt 0:00:12]} 59. Ne6 {[%emt 0:00:11]} Ne5 {[%emt 0:00:06]} 60. f4 {[%emt 0:00:08]} Nd7 {[%emt 0:00:08]} 61. Kg4 {[%emt 0:00:07]} Nb6 {[%emt 0:00:01]} 62. Kf3 {[%emt 0:00:14]} Nd5 {[%emt 0:00:04]} 63. Ke4 {[%emt 0:00:04]} Ne7 {[%emt 0:00:01]} 64. Nf8+ {[%emt 0:00:21]} Kh6 {[%emt 0:00:03]} 65. Ne6 {[%emt 0:00:01]} Kh7 {[%emt 0:00:02]} 66. Nc7 {[%emt 0:00:19]} Kh6 {[%emt 0:00:17]} 67. Ne8 {[%emt 0:00:02]} Kh7 {[%emt 0:00:10]} 68. Nd6 {[%emt 0:00:06]} Kh6 {[%emt 0:00:02]} 69. Ne8 {[%emt 0:00:01]} Kh7 {[%emt 0:00:01]} 70. Nd6 {[%emt 0:00:23]} Kh6 {[%emt 0:00:01]} 71. Kf3 {[%emt 0:00:01]} Kh5 {[%emt 0:00:23]} 72. Kg3 {[%emt 0:00:14]} Kh6 {[%emt 0:00:05]} 73. Kg4 {[%emt 0:00:02]} Nd5 {[%emt 0:00:05]} 74. Kf3 {[%emt 0:00:26]} Ne7 {[%emt 0:00:03]} 75. Kg4 {[%emt 0:00:05]} Nd5 {[%emt 0:00:02]} 76. Nf7+ {[%emt 0:00:10]} Kh7 {[%emt 0:00:01]} 77. Kf3 {[%emt 0:00:16]} Ne7 {[%emt 0:00:01]} 78. Ke4 {[%emt 0:00:02]} Kg8 {[%emt 0:00:01]} 79. Nd6 {[%emt 0:00:25]} Kh7 {[%emt 0:00:02]} 80. Nf7 {[%emt 0:00:12]} Kg8 {[%emt 0:00:01]} 81. Nd8 {[%emt 0:00:07]} Kh7 {[%emt 0:00:02]} 82. Nf7 {[%emt 0:00:16]} 1/2-1/2

[Event "Kupreichik Memorial Rapid 2019"]
[Site "Minsk"]
[Date "2019.08.16"]
[Round "6.10"]
[White "Zarubitski, Viachaslau"]
[Black "Barskij, Vladimir"]
[Result "1-0"]
[ECO "B81"]
[WhiteElo "2426"]
[BlackElo "2389"]
[Annotator "NA"]
[PlyCount "73"]
[EventDate "2019.08.15"]
[EventType "swiss"]
[EventCountry "BLR"]
[SourceTitle "playchess.com"]
[Source "ChessBase"]
[SourceQuality "1"]
[TimeControl "900+10"]

1. e4 {[%emt 0:00:00]} c5 {[%emt 0:00:00]} 2. Nf3 {[%emt 0:00:00]} e6 3. d4 cxd4 {[%emt 0:00:00]} 4. Nxd4 {[%emt 0:00:00]} Nf6 5. Nc3 d6 {[%emt 0:00:00]} 6. g4 {[%emt 0:00:00]} h6 {[%emt 0:00:00]} 7. h4 {[%emt 0:00:01]} Nc6 {[%emt 0:00:00]} 8. Rg1 {[%emt 0:00:03]} h5 {[%emt 0:00:00]} 9. gxh5 {[%emt 0:00:06]} Nxh5 {[%emt 0:00:05]} 10. Bg5 {[%emt 0:00:04]} Nf6 {[%emt 0:00:03]} 11. Qd2 {[%emt 0:00:05]} Qb6 {[%emt 0:00:10]} 12. Nb3 {[%emt 0:00:04]} a6 {[%emt 0:00:06]} 13. O-O-O {[%emt 0:00:19]} Qc7 {[%emt 0:00:03]} 14. Kb1 {[%emt 0:00:39]} Bd7 {[%emt 0:00:02]} 15. Be2 {[%emt 0:00:37]} O-O-O {[%emt 0:01:29]} 16. h5 {[%emt 0:02:41]} Be7 {[%emt 0:01:25]} 17. Be3 {[%emt 0:00:08]} Ne5 {[%emt 0:01:26]} 18. f4 {[%emt 0:01:35]} Nc4 {[%emt 0:00:02]} 19. Bxc4 {[%emt 0:00:01]} Qxc4 {[%emt 0:00:02]} 20. Rxg7 {[%emt 0:00:12]} Be8 {[%emt 0:00:49]} 21. Bb6 {[%emt 0:01:59]} Rd7 {[%emt 0:00:58]} 22. Qe3 {[%emt 0:00:55]} Bd8 {[%emt 0:02:02]} 23. Bxd8 {[%emt 0:00:36]} Rxd8 {[%emt 0:00:01]} 24. e5 {[%emt 0:04:58]} Nxh5 {[%emt 0:00:34]} 25. Rg5 {[%emt 0:01:16]} Qxf4 {[%emt 0:00:34]} 26. Qb6 {[%emt 0:00:52]} Bc6 {[%emt 0:04:37]} 27. exd6 {[%emt 0:00:28]} Rxd6 {[%emt 0:00:15]} 28. Rxd6 {[%emt 0:00:01]} Qxd6 {[%emt 0:00:13]} 29. a4 {[%emt 0:01:11]} Nf6 {[%emt 0:00:16]} 30. Qf2 {[%emt 0:00:22]} Rh1+ {[%emt 0:01:57]} 31. Ka2 {[%emt 0:00:00]} Rh6 {[%emt 0:00:15]} 32. Na5 {[%emt 0:00:33]} Nd5 {[%emt 0:02:24]} 33. Qxf7 {[%emt 0:00:23]} Nxc3+ {[%emt 0:00:24]} 34. bxc3 {[%emt 0:00:01]} Kb8 {[%emt 0:00:07]} 35. Nxc6+ {[%emt 0:00:11]} Qxc6 {[%emt 0:00:07]} 36. Rg8+ {[%emt 0:00:16]} Ka7 {[%emt 0:00:02]} 37. Qf2+ {[%emt 0:00:01]} 1-0

[Event "Kupreichik Memorial Rapid 2019"]
[Site "Minsk"]
[Date "2019.08.16"]
[Round "6.11"]
[White "Paravyan, David"]
[Black "Kalinin, Dmitry"]
[Result "1-0"]
[ECO "C10"]
[WhiteElo "2605"]
[BlackElo "2119"]
[Annotator "ChessBase"]
[PlyCount "123"]
[EventDate "2019.08.15"]
[EventType "swiss"]
[EventCountry "BLR"]
[SourceTitle "playchess.com"]
[Source "ChessBase"]
[SourceQuality "1"]
[TimeControl "900+10"]

1. e4 {[%emt 0:00:00]} e6 {[%emt 0:00:00]} 2. d4 {[%emt 0:00:00]} d5 {[%emt 0:00:00]} 3. Nc3 {[%emt 0:00:03]} dxe4 {[%emt 0:00:00]} 4. Nxe4 {[%emt 0:00:02]} Nd7 {[%emt 0:00:00]} 5. c3 {[%emt 0:00:02]} Ngf6 {[%emt 0:00:00]} 6. Bd3 {[%emt 0:00:01]} Nxe4 {[%emt 0:00:06]} 7. Bxe4 {[%emt 0:00:01]} Nf6 {[%emt 0:00:02]} 8. Bc2 {[%emt 0:00:01]} c5 {[%emt 0:00:42]} 9. Nf3 {[%emt 0:00:02]} cxd4 {[%emt 0:00:44]} 10. Nxd4 {[%emt 0:00:02]} Be7 {[%emt 0:00:07]} 11. O-O {[%emt 0:00:04]} O-O {[%emt 0:00:32]} 12. Re1 {[%emt 0:00:03]} Qc7 {[%emt 0:00:50]} 13. Qf3 {[%emt 0:00:01]} Rd8 {[%emt 0:00:36]} 14. Bf4 {[%emt 0:00:09]} Qb6 {[%emt 0:00:23]} 15. Bb3 {[%emt 0:00:01]} Bd7 {[%emt 0:00:37]} 16. Nf5 {[%emt 0:00:24]} Bf8 {[%emt 0:03:42]} 17. Nh6+ {[%emt 0:00:08]} gxh6 {[%emt 0:00:29]} 18. Be3 {[%emt 0:00:01]} Qa5 {[%emt 0:00:53]} 19. Qxf6 {[%emt 0:00:05]} Bg7 {[%emt 0:00:36]} 20. Qh4 {[%emt 0:00:02]} Qf5 {[%emt 0:01:20]} 21. Rad1 {[%emt 0:00:29]} Bf6 {[%emt 0:00:23]} 22. Qf4 {[%emt 0:01:03]} Qxf4 {[%emt 0:01:55]} 23. Bxf4 {[%emt 0:00:01]} Bc6 {[%emt 0:00:21]} 24. Bxh6 {[%emt 0:00:04]} Bg7 {[%emt 0:01:09]} 25. Be3 {[%emt 0:00:18]} Re8 {[%emt 0:01:05]} 26. f4 {[%emt 0:00:35]} Bf6 {[%emt 0:00:14]} 27. Bd4 {[%emt 0:00:03]} Kg7 {[%emt 0:00:04]} 28. Re3 {[%emt 0:00:02]} Bxd4 {[%emt 0:00:11]} 29. Rxd4 {[%emt 0:00:01]} Kf6 {[%emt 0:00:01]} 30. Rh3 {[%emt 0:00:10]} Rg8 {[%emt 0:00:11]} 31. g3 {[%emt 0:00:05]} Rg7 {[%emt 0:00:05]} 32. Rh6+ {[%emt 0:00:04]} Ke7 {[%emt 0:00:17]} 33. Kf2 {[%emt 0:00:03]} Rh8 {[%emt 0:01:21]} 34. Bc2 {[%emt 0:00:27]} f5 {[%emt 0:00:03]} 35. Bb3 {[%emt 0:00:03]} Rg6 {[%emt 0:00:02]} 36. Rh5 {[%emt 0:02:23]} h6 {[%emt 0:00:09]} 37. a4 {[%emt 0:00:13]} Rc8 {[%emt 0:00:31]} 38. Bc2 {[%emt 0:00:11]} Rf6 {[%emt 0:00:08]} 39. Rh4 {[%emt 0:00:21]} Rg8 {[%emt 0:00:10]} 40. Ke3 {[%emt 0:00:38]} Rc8 {[%emt 0:00:28]} 41. a5 {[%emt 0:00:19]} Bd5 {[%emt 0:00:09]} 42. Kd2 {[%emt 0:00:39]} Rc5 {[%emt 0:00:14]} 43. b4 {[%emt 0:00:03]} Rc8 {[%emt 0:00:01]} 44. g4 {[%emt 0:00:08]} fxg4 {[%emt 0:00:20]} 45. Rxg4 {[%emt 0:00:01]} Bc6 {[%emt 0:00:23]} 46. Bd3 {[%emt 0:00:35]} a6 {[%emt 0:00:05]} 47. c4 {[%emt 0:00:28]} Rcf8 {[%emt 0:00:26]} 48. Ke3 {[%emt 0:00:14]} h5 {[%emt 0:00:25]} 49. Rg5 {[%emt 0:00:09]} h4 {[%emt 0:00:11]} 50. Rh5 {[%emt 0:00:27]} Rg8 {[%emt 0:00:16]} 51. Rxh4 {[%emt 0:00:57]} e5 {[%emt 0:00:13]} 52. Rh7+ {[%emt 0:00:20]} Ke8 {[%emt 0:00:00]} 53. fxe5 {[%emt 0:00:01]} Rf3+ {[%emt 0:00:03]} 54. Kd2 {[%emt 0:00:01]} Rg2+ {[%emt 0:00:01]} 55. Kc3 {[%emt 0:00:06]} Ba4 {[%emt 0:00:01]} 56. b5 {[%emt 0:01:09]} axb5 {[%emt 0:00:01]} 57. cxb5 {[%emt 0:01:08]} Bxb5 {[%emt 0:00:34]} 58. Rxb7 {[%emt 0:00:06]} Ba4 {[%emt 0:00:29]} 59. Rb8+ {[%emt 0:00:11]} Ke7 {[%emt 0:00:02]} 60. Rxa4 {[%emt 0:00:01]} Rxh2 {[%emt 0:00:12]} 61. a6 {[%emt 0:00:17]} Rhh3 {[%emt 0:00:14]} 62. Rd4 {[%emt 0:00:01]} 1-0